[Event "NOR-chT Eliteserien 2021-22"]
[Site "Norway"]
[Date "2022.02.06"]
[Round "6.18"]
[White "Thanke, Bror"]
[Black "Gvein, Kenneth"]
[Result "1-0"]
[ECO "D40"]
[WhiteElo "2143"]
[BlackElo "2163"]
[Annotator "NA"]
[PlyCount "129"]
[EventDate "2021.10.29"]
[EventType "team-tourn"]
[EventCountry "NOR"]
[SourceTitle "playchess.com"]
[Source "ChessBase"]
[SourceQuality "1"]
[TimeControl "40/5400+30:1800+30"]

1. d4 {[%emt 0:00:05]} d5 {[%emt 0:00:32]} 2. c4 {[%emt 0:00:17]} e6 {[%emt 0:00:30]} 3. Nf3 {[%emt 0:00:20]} Nf6 {[%emt 0:00:41]} 4. Nc3 {[%emt 0:01:01]} Be7 {[%emt 0:00:37]} 5. e3 {[%emt 0:01:54]} O-O {[%emt 0:03:15]} 6. Bd3 {[%emt 0:02:40]} c5 {[%emt 0:01:35]} 7. O-O {[%emt 0:02:30]} Nc6 {[%emt 0:05:43]} 8. cxd5 {[%emt 0:12:12]} exd5 {[%emt 0:00:57]} (8... Nxd5 $11 9. a3 cxd4 10. exd4 Qb6) 9. h3 {[%emt 0:01:15]} h6 {[%emt 0:07:07]} (9... b6 $11) 10. a3 {[%emt 0:05:25]} c4 {[%emt 0:04:52]} 11. Bc2 $11 {[%emt 0:01:39]} Rb8 {[%emt 0:06:34]} 12. e4 {[%emt 0:06:28]} dxe4 {[%emt 0:04:18]} 13. Nxe4 {[%emt 0:00:14]} Nxe4 {[%emt 0:01:30]} 14. Bxe4 {[%emt 0:00:05]} Na5 {[%emt 0:01:39]} 15. Bc2 {[%emt 0:13:12]} Be6 {[%emt 0:06:54]} 16. Be3 {[%emt 0:02:31]} Nb3 {[%emt 0:02:58]} 17. Rb1 {[%emt 0:00:33]} a5 {[%emt 0:02:03]} 18. Ne5 {[%emt 0:01:07]} Bf6 {[%emt 0:13:24]} 19. Qh5 {[%emt 0:10:05]} Bxe5 {[%emt 0:08:07]} 20. dxe5 {[%emt 0:01:37]} f5 {[%emt 0:03:21]} 21. Rbd1 {[%emt 0:17:52]} Qe8 {[%emt 0:01:14]} 22. Qh4 {[%emt 0:01:35]} Qf7 {[%emt 0:02:31]} 23. Rd6 {[%emt 0:01:05]} Rbe8 {[%emt 0:06:29]} 24. f4 {[%emt 0:01:23]} Qe7 {[%emt 0:02:57]} 25. Qf2 {[%emt 0:01:25]} Rc8 {[%emt 0:01:49]} 26. Rfd1 {[%emt 0:03:29]} Rfe8 {[%emt 0:02:05]} 27. Bb6 {[%emt 0:03:10]} a4 {[%emt 0:01:41]} 28. Qg3 {[%emt 0:03:09]} Qf7 {[%emt 0:03:11]} 29. Qe3 {[%emt 0:00:41]} Rc6 {[%emt 0:00:41]} 30. Rd8 {[%emt 0:01:18]} Rc8 {[%emt 0:00:22]} 31. R8d6 {[%emt 0:00:43]} Rc6 {[%emt 0:00:10]} 32. Kh2 {[%emt 0:00:28]} Rec8 {[%emt 0:02:14]} 33. Rd8+ Rxd8 {[%emt 0:00:37]} 34. Rxd8+ {[%emt 0:00:44]} Kh7 {[%emt 0:00:07]} 35. Rd6 {[%emt 0:01:38]} Rc8 {[%emt 0:01:07]} 36. g4 {[%emt 0:00:57]} g6 {[%emt 0:00:09]} 37. g5 {[%emt 0:01:41]} h5 {[%emt 0:00:44]} 38. Kg3 {[%emt 0:00:42]} Qe8 {[%emt 0:01:13]} 39. Kh4 {[%emt 0:01:58]} Kg7 {[%emt 0:00:32]} 40. Qc3 {[%emt 0:00:41]} Kf7 {[%emt 0:01:44]} 41. Bd1 {[%emt 0:04:13]} Nc5 {[%emt 0:19:30]} 42. Bxc5 {[%emt 0:08:51]} Rxc5 {[%emt 0:00:05]} 43. Qd4 {[%emt 0:00:35]} b6 {[%emt 0:01:43]} 44. Bf3 {[%emt 0:05:26]} c3 {[%emt 0:01:42]} 45. bxc3 {[%emt 0:00:43]} Rc4 {[%emt 0:00:32]} 46. Qxb6 {[%emt 0:01:41]} Rxf4+ {[%emt 0:02:02]} 47. Kg3 {[%emt 0:00:06]} Rc4 {[%emt 0:00:08]} 48. Qb7+ {[%emt 0:03:01]} Kf8 {[%emt 0:02:15]} 49. Qh7 {[%emt 0:02:33]} Qe7 {[%emt 0:04:46]} 50. Qxg6 {[%emt 0:02:07]} h4+ {[%emt 0:00:33]} 51. Kg2 {[%emt 0:01:13]} Bf7 {[%emt 0:01:06]} 52. Qxf5 {[%emt 0:02:10]} Rxc3 {[%emt 0:01:42]} 53. g6 {[%emt 0:01:20]} Rxa3 {[%emt 0:00:09]} 54. Qxf7+ {[%emt 0:01:19]} Qxf7 {[%emt 0:00:05]} 55. gxf7 {[%emt 0:00:03]} Kxf7 {[%emt 0:00:07]} 56. Bd5+ {[%emt 0:00:44]} Ke7 {[%emt 0:00:07]} 57. Ra6 {[%emt 0:00:47]} Rg3+ {[%emt 0:00:32]} 58. Kf2 {[%emt 0:00:38]} Rg5 {[%emt 0:00:53]} 59. Re6+ {[%emt 0:00:29]} Kd7 {[%emt 0:00:08]} 60. Kf3 {[%emt 0:00:47]} Rg3+ {[%emt 0:00:42]} 61. Kf4 {[%emt 0:00:12]} Rd3 {[%emt 0:00:16]} 62. Ke4 {[%emt 0:00:20]} Rxh3 {[%emt 0:00:24]} 63. Ra6 {[%emt 0:00:12]} Rg3 {[%emt 0:00:28]} 64. Ra7+ {[%emt 0:00:10]} Kc8 {[%emt 0:00:19]} 65. e6 {[%emt 0:01:00]} 1-0

[Event "NOR-chT Eliteserien 2021-22"]
[Site "Norway"]
[Date "2022.03.05"]
[Round "8.1"]
[White "Risting, Eivind Olav"]
[Black "Sagafos, Magne"]
[Result "1-0"]
[ECO "E90"]
[WhiteElo "2311"]
[BlackElo "2386"]
[Annotator "NA"]
[PlyCount "79"]
[EventDate "2021.10.29"]
[EventType "team-tourn"]
[EventCountry "NOR"]
[SourceTitle "playchess.com"]
[Source "ChessBase"]
[SourceQuality "1"]
[TimeControl "40/5400+30:1800+30"]

1. d4 {[%emt 0:00:04]} Nf6 {[%emt 0:00:06]} 2. c4 {[%emt 0:00:06]} g6 {[%emt 0:00:12]} 3. Nc3 {[%emt 0:00:26]} d6 {[%emt 0:00:31]} 4. e4 {[%emt 0:01:06]} Bg7 {[%emt 0:00:06]} 5. h3 {[%emt 0:00:22]} O-O {[%emt 0:01:45]} 6. Be3 {[%emt 0:01:02]} c6 {[%emt 0:12:44]} 7. Nf3 {[%emt 0:02:52]} a6 {[%emt 0:02:59]} 8. Qc2 {[%emt 0:12:01]} b5 {[%emt 0:01:11]} 9. a3 {[%emt 0:03:37]} bxc4 {[%emt 0:20:12]} 10. Bxc4 {[%emt 0:00:27]} Nbd7 $14 {[%emt 0:09:02]} (10... d5 $11 {feels stronger.} 11. Bd3 dxe4 12. Nxe4 Be6) 11. O-O {[%emt 0:04:23]} Nb6 {[%emt 0:13:40]} 12. Bd3 {[%emt 0:11:46]} Be6 {[%emt 0:06:50]} 13. b3 {[%emt 0:08:33]} Qb8 {[%emt 0:04:48]} 14. Rab1 {[%emt 0:04:24]} Ne8 {[%emt 0:09:51]} 15. Ng5 {[%emt 0:05:26]} Bd7 {[%emt 0:01:16]} 16. f4 {[%emt 0:02:16]} f5 {[%emt 0:13:17]} 17. exf5 {[%emt 0:16:23]} gxf5 {[%emt 0:00:00]} 18. Qe2 {[%emt 0:03:01]} Nc7 {[%emt 0:00:00]} 19. Bf2 {[%emt 0:02:25]} h6 {[%emt 0:00:00]} 20. Nf3 {[%emt 0:01:00]} e6 {[%emt 0:00:00]} 21. Qd2 {[%emt 0:03:46]} Nbd5 {[%emt 0:00:00]} 22. g3 {[%emt 0:01:57]} Nxc3 {[%emt 0:00:00]} 23. Qxc3 {[%emt 0:00:04]} Nd5 {[%emt 0:00:00]} 24. Qc1 {[%emt 0:02:39]} Qb6 {[%emt 0:00:00]} 25. Kh2 {[%emt 0:01:13]} Rf7 {[%emt 0:00:00]} 26. Qe1 {[%emt 0:00:26]} Bf6 {[%emt 0:01:57]} 27. Ne5 {[%emt 0:01:16]} dxe5 {[%emt 0:01:09]} 28. dxe5 {[%emt 0:01:11]} Qc7 {[%emt 0:00:14]} 29. exf6 {[%emt 0:00:10]} Rxf6 {[%emt 0:01:27]} 30. Bd4 {[%emt 0:03:48]} Rf7 {[%emt 0:00:06]} 31. Be5 {[%emt 0:01:02]} Qb6 {[%emt 0:00:34]} 32. g4 {[%emt 0:00:35]} Qe3 {[%emt 0:00:44]} 33. Qxe3 {[%emt 0:01:00]} Nxe3 {[%emt 0:00:04]} 34. Rf3 {[%emt 0:00:11]} Nd5 {[%emt 0:00:18]} 35. gxf5 {[%emt 0:00:25]} exf5 {[%emt 0:00:18]} 36. Rg3+ {[%emt 0:00:20]} Kf8 {[%emt 0:01:15]} 37. Bd6+ {[%emt 0:00:17]} Ne7 {[%emt 0:00:28]} 38. Rbg1 {[%emt 0:01:40]} Rf6 {[%emt 0:00:28]} 39. Rg8+ {[%emt 0:00:57]} Kf7 {[%emt 0:00:05]} 40. R1g7+ {[%emt 0:00:57]} 1-0

[Event "NOR-chT Eliteserien 2021-22"]
[Site "Norway"]
[Date "2022.03.05"]
[Round "8.2"]
[White "Byklum, Bjornar"]
[Black "Storme, Isak"]
[Result "1/2-1/2"]
[ECO "D28"]
[WhiteElo "2318"]
[BlackElo "2352"]
[Annotator "NA"]
[PlyCount "90"]
[EventDate "2021.10.29"]
[EventType "team-tourn"]
[EventCountry "NOR"]
[SourceTitle "playchess.com"]
[Source "ChessBase"]
[SourceQuality "1"]
[TimeControl "40/5400+30:1800+30"]

1. d4 {[%emt 0:00:04]} d5 {[%emt 0:00:31]} 2. c4 {[%emt 0:00:12]} dxc4 {[%emt 0:00:53]} 3. Nf3 {[%emt 0:00:44]} Nf6 {[%emt 0:01:28]} 4. e3 {[%emt 0:01:01]} e6 {[%emt 0:00:13]} 5. Bxc4 {[%emt 0:00:14]} c5 {[%emt 0:00:10]} 6. O-O {[%emt 0:00:34]} Nc6 {[%emt 0:00:09]} 7. Nc3 {[%emt 0:06:07]} a6 {[%emt 0:00:23]} 8. Qe2 {[%emt 0:04:50]} b5 {[%emt 0:00:55]} 9. Bb3 {[%emt 0:00:23]} Bb7 {[%emt 0:00:19]} 10. Rd1 {[%emt 0:09:22]} Be7 {[%emt 0:01:02] is recently more successful than 10...Qc7.} 11. d5 {[%emt 0:12:33]} exd5 {[%emt 0:00:44]} 12. Nxd5 {[%emt 0:00:27]} Nxd5 {[%emt 0:00:16]} 13. Bxd5 {[%emt 0:00:53]} Qb6 {[%emt 0:01:12]} 14. e4 {[%emt 0:00:51]} O-O {[%emt 0:08:19]} 15. Be3 {[%emt 0:00:17]} Nb4 {[%emt 0:01:51]} 16. Bxb7 {[%emt 0:12:43]} Qxb7 {[%emt 0:00:07]} 17. a3 {[%emt 0:00:11]} Nc6 {[%emt 0:00:20]} 18. Rd5 {[%emt 0:00:18]} c4 {[%emt 0:10:53] [#]} 19. Nd4 $146 {[%emt 0:11:27]} ({Predecessor:} 19. Rad1 Rad8 20. h4 h6 21. h5 Rfe8 22. Nh2 Rxd5 23. exd5 Nb8 24. Ng4 Bf8 25. Qf3 {1-0 (37) Khademalsharieh,S (2494)-Krush,I (2429) Chess.com INT 2020}) 19... Nxd4 {[%emt 0:01:59]} 20. Bxd4 {[%emt 0:00:11]} Rfd8 {[%emt 0:17:47]} 21. Rd1 {[%emt 0:01:13]} Rxd5 {[%emt 0:01:10]} 22. exd5 {[%emt 0:00:06]} Rd8 $11 {[%emt 0:00:29]} 23. Bc3 {[%emt 0:01:37]} Bf8 {[%emt 0:01:24]} 24. Qf3 {[%emt 0:11:04]} Qb6 {[%emt 0:04:01]} 25. Qe3 {[%emt 0:09:08]} Qxe3 {[%emt 0:05:17]} 26. fxe3 {[%emt 0:00:02]} f5 {[%emt 0:00:16]} 27. Kf2 {[%emt 0:00:46]} Kf7 {[%emt 0:01:25]} 28. Kf3 {[%emt 0:00:41]} Re8 {[%emt 0:03:16]} 29. h3 {[%emt 0:01:14]} h5 {[%emt 0:05:35]} 30. d6 {[%emt 0:04:28]} Ke6 {[%emt 0:05:40]} 31. d7 {[%emt 0:02:29]} Rd8 {[%emt 0:00:05]} 32. Kf4 {[%emt 0:00:34]} Bd6+ {[%emt 0:11:18]} 33. Kg5 {[%emt 0:00:09]} Rxd7 {[%emt 0:00:33]} 34. Kxh5 {[%emt 0:02:59]} Kf7 {[%emt 0:03:08]} 35. Rd4 {[%emt 0:00:40]} g6+ {[%emt 0:04:50]} 36. Kg5 {[%emt 0:01:01]} Be7+ {[%emt 0:02:09]} 37. Kf4 {[%emt 0:00:49]} Rxd4+ {[%emt 0:00:48]} 38. Bxd4 {[%emt 0:00:39]} Ke6 {[%emt 0:02:17]} 39. g4 {[%emt 0:02:59]} fxg4 {[%emt 0:00:40]} 40. hxg4 {[%emt 0:00:38]} a5 {[%emt 0:01:56]} 41. Ke4 {[%emt 0:32:12]} Bd6 {[%emt 0:10:21]} 42. Bg7 {[%emt 0:00:00]} Bc5 {[%emt 0:02:15]} 43. Bd4 {[%emt 0:00:00]} Bd6 {[%emt 0:00:33]} 44. Bg7 {[%emt 0:00:00]} Bc5 {[%emt 0:00:27]} 45. Bd4 {[%emt 0:00:00]} Bd6 {[%emt 0:00:28]} 1/2-1/2

[Event "NOR-chT Eliteserien 2021-22"]
[Site "Norway"]
[Date "2022.03.05"]
[Round "8.3"]
[White "Lindbol, Aleksander"]
[Black "Leer-Helgesen, Bjarte"]
[Result "1/2-1/2"]
[ECO "A13"]
[WhiteElo "2222"]
[BlackElo "2352"]
[Annotator "NA"]
[PlyCount "38"]
[EventDate "2021.10.29"]
[EventType "team-tourn"]
[EventCountry "NOR"]
[SourceTitle "playchess.com"]
[Source "ChessBase"]
[SourceQuality "1"]
[TimeControl "40/5400+30:1800+30"]

1. c4 {[%emt 0:00:10]} e6 {[%emt 0:00:11]} 2. g3 {[%emt 0:01:24]} d5 {[%emt 0:00:09]} 3. Bg2 {[%emt 0:00:16]} Nf6 {[%emt 0:00:12]} 4. Nf3 {[%emt 0:00:23]} dxc4 {[%emt 0:00:46]} 5. Qa4+ {[%emt 0:01:23]} c6 {[%emt 0:00:46]} 6. Qxc4 {[%emt 0:00:53]} b5 {[%emt 0:00:24]} 7. Qb3 {[%emt 0:00:31]} Bb7 {[%emt 0:02:42]} 8. O-O {[%emt 0:02:38]} a6 {[%emt 0:08:46]} 9. d4 {[%emt 0:04:14]} c5 {[%emt 0:04:34]} 10. dxc5 {[%emt 0:13:30]} Bxc5 {[%emt 0:01:15]} 11. Be3 {[%emt 0:16:40]} Nbd7 {[%emt 0:14:08]} 12. Bxc5 {[%emt 0:06:14]} Nxc5 {[%emt 0:00:07]} 13. Qb4 {[%emt 0:00:04]} Rc8 {[%emt 0:21:28]} 14. Nc3 {[%emt 0:04:22]} O-O {[%emt 0:01:55]} 15. Rfd1 $11 {[%emt 0:05:47]} Qb6 {[%emt 0:06:29]} 16. a4 {[%emt 0:07:36]} Nd5 {[%emt 0:08:08]} 17. Nxd5 {[%emt 0:03:25]} Bxd5 {[%emt 0:00:07]} 18. axb5 {[%emt 0:01:52]} Qxb5 {[%emt 0:03:07]} 19. Qxb5 {[%emt 0:02:50]} axb5 {[%emt 0:00:19]} 1/2-1/2

[Event "NOR-chT Eliteserien 2021-22"]
[Site "Norway"]
[Date "2022.03.05"]
[Round "8.4"]
[White "Astrup, Kim Chr."]
[Black "Kjolberg, Jens Hjorth"]
[Result "0-1"]
[ECO "A10"]
[WhiteElo "2224"]
[BlackElo "2154"]
[Annotator "NA"]
[PlyCount "112"]
[EventDate "2021.10.29"]
[EventType "team-tourn"]
[EventCountry "NOR"]
[SourceTitle "playchess.com"]
[Source "ChessBase"]
[SourceQuality "1"]
[TimeControl "40/5400+30:1800+30"]

1. Nf3 {[%emt 0:01:00]} e6 {[%emt 0:00:27]} 2. c4 {[%emt 0:00:51]} f5 {[%emt 0:00:54]} 3. g3 {[%emt 0:01:27]} Nf6 {[%emt 0:00:10]} 4. Bg2 {[%emt 0:00:26]} d5 {[%emt 0:00:59]} 5. O-O {[%emt 0:02:42]} c6 {[%emt 0:02:33]} 6. d3 {[%emt 0:02:29]} Be7 {[%emt 0:00:30]} 7. b3 {[%emt 0:02:27]} O-O {[%emt 0:01:51]} 8. Bb2 {[%emt 0:00:41]} a5 {[%emt 0:01:31]} 9. a3 {[%emt 0:01:56]} Bd6 {[%emt 0:22:54]} 10. Nbd2 {[%emt 0:14:23]} Qe7 {[%emt 0:03:10]} 11. e4 {[%emt 0:06:06]} fxe4 {[%emt 0:06:37]} 12. dxe4 {[%emt 0:01:05]} dxe4 {[%emt 0:02:46]} 13. Ng5 {[%emt 0:03:18]} e5 {[%emt 0:05:52]} 14. Ndxe4 {[%emt 0:03:08]} Nxe4 {[%emt 0:08:44]} 15. Nxe4 {[%emt 0:02:06]} Bc7 {[%emt 0:00:04]} 16. Qh5 {[%emt 0:04:31]} Bf5 {[%emt 0:01:47]} 17. Rfe1 {[%emt 0:13:12]} Nd7 {[%emt 0:04:32]} 18. Rad1 {[%emt 0:01:30]} Rad8 {[%emt 0:06:44]} 19. Kh1 {[%emt 0:24:11]} h6 {[%emt 0:09:04]} 20. Qe2 {[%emt 0:01:26]} Kh8 {[%emt 0:05:00]} 21. Rd2 {[%emt 0:03:06]} Nf6 {[%emt 0:07:46]} 22. Nxf6 {[%emt 0:01:10]} Rxd2 {[%emt 0:00:44]} 23. Qxd2 {[%emt 0:00:13]} Qxf6 {[%emt 0:00:09]} 24. f4 {[%emt 0:01:16]} Rd8 {[%emt 0:01:41]} 25. Qe2 {[%emt 0:01:14]} Qe6 {[%emt 0:02:29]} 26. Bxe5 {[%emt 0:01:24]} Bxe5 {[%emt 0:00:40]} 27. fxe5 {[%emt 0:01:31]} a4 {[%emt 0:01:50]} 28. bxa4 {[%emt 0:00:30]} Rd4 {[%emt 0:00:11]} 29. Qf2 {[%emt 0:01:17]} Rxc4 {[%emt 0:00:33]} 30. a5 {[%emt 0:00:35]} Rc2 {[%emt 0:00:45]} 31. Qf4 {[%emt 0:01:01]} Bg6 {[%emt 0:01:53]} 32. Qf3 {[%emt 0:01:04]} Kh7 {[%emt 0:00:55]} 33. g4 {[%emt 0:01:16]} Rc5 {[%emt 0:00:19]} 34. Qf4 {[%emt 0:00:19]} Rc4 {[%emt 0:00:35]} 35. Qf3 {[%emt 0:01:09]} Rc5 {[%emt 0:00:33]} 36. Qe2 {[%emt 0:00:45]} Rc2 {[%emt 0:00:31]} 37. Qf3 {[%emt 0:00:49]} Rc5 {[%emt 0:00:29]} 38. Qg3 {[%emt 0:00:03]} Rxa5 {[%emt 0:00:36]} 39. h4 {[%emt 0:00:09]} Rc5 {[%emt 0:00:35]} 40. Qe3 {[%emt 0:01:54]} Rc4 {[%emt 0:00:31]} 41. h5 {[%emt 0:30:40]} Bc2 {[%emt 0:12:41]} 42. Qe2 {[%emt 0:00:00]} Kh8 {[%emt 0:03:17]} 43. Bf3 {[%emt 0:00:00]} Bh7 {[%emt 0:01:58]} 44. Qd1 {[%emt 0:00:00]} Qe7 {[%emt 0:04:17]} 45. Kg2 {[%emt 0:00:00]} Rc2+ {[%emt 0:04:40]} 46. Kg3 {[%emt 0:00:00]} Qc5 {[%emt 0:00:58]} 47. Re2 {[%emt 0:00:00]} Rxe2 {[%emt 0:01:47]} 48. Qxe2 {[%emt 0:00:00]} Bg8 {[%emt 0:00:28]} 49. a4 {[%emt 0:00:00]} Be6 {[%emt 0:00:18]} 50. Qe4 {[%emt 0:01:07]} Qc3 {[%emt 0:01:16]} 51. Qe2 {[%emt 0:00:26]} Bd5 {[%emt 0:02:52]} 52. Kf4 {[%emt 0:01:55]} Qd4+ {[%emt 0:01:06]} 53. Kf5 {[%emt 0:00:20]} Bc4 {[%emt 0:00:35]} 54. Qe1 {[%emt 0:01:07]} Bg8 {[%emt 0:00:42]} 55. Be4 {[%emt 0:01:15]} Qc4 {[%emt 0:00:33]} 56. a5 {[%emt 0:00:45]} Qf7# {[%emt 0:00:18]} 0-1

[Event "NOR-chT Eliteserien 2021-22"]
[Site "Norway"]
[Date "2022.03.05"]
[Round "8.5"]
[White "Dahl, Max"]
[Black "Harestad, Hans Krogh"]
[Result "1/2-1/2"]
[ECO "C41"]
[WhiteElo "2038"]
[BlackElo "2208"]
[Annotator "NA"]
[PlyCount "131"]
[EventDate "2021.10.29"]
[EventType "team-tourn"]
[EventCountry "NOR"]
[SourceTitle "playchess.com"]
[Source "ChessBase"]
[SourceQuality "1"]
[TimeControl "40/5400+30:1800+30"]

1. e4 {[%emt 0:00:07]} e5 {[%emt 0:00:02]} 2. Nf3 {[%emt 0:00:07]} d6 {[%emt 0:00:04]} 3. d4 {[%emt 0:01:00]} exd4 {[%emt 0:00:04]} 4. Nxd4 {[%emt 0:00:07]} Nf6 {[%emt 0:00:05]} 5. Nc3 {[%emt 0:00:39]} Be7 {[%emt 0:00:06]} 6. Bf4 {[%emt 0:00:27]} O-O {[%emt 0:00:34]} 7. Qd2 {[%emt 0:01:10]} a6 {[%emt 0:01:33]} 8. O-O-O {[%emt 0:09:51]} b5 {[%emt 0:00:07]} 9. f3 {[%emt 0:04:18]} c5 {[%emt 0:06:48]} 10. Nf5 {[%emt 0:24:14]} Bxf5 {[%emt 0:00:35]} 11. exf5 {[%emt 0:00:06]} Nc6 {[%emt 0:08:56]} 12. Bxd6 {[%emt 0:14:24]} Qa5 {[%emt 0:21:59]} 13. Bxe7 {[%emt 0:08:19]} Nxe7 {[%emt 0:00:15]} 14. Bd3 {[%emt 0:01:36]} b4 {[%emt 0:04:46]} 15. Nb1 {[%emt 0:04:35]} Qxa2 {[%emt 0:00:07]} 16. Be4 {[%emt 0:02:30]} Rac8 {[%emt 0:08:29]} 17. Qd6 {[%emt 0:04:21]} Nxe4 {[%emt 0:05:04]} 18. fxe4 {[%emt 0:06:43]} Nc6 {[%emt 0:00:31]} 19. Qd5 {[%emt 0:05:21]} c4 {[%emt 0:00:44]} 20. f6 {[%emt 0:01:00]} gxf6 {[%emt 0:01:36]} 21. Rd3 {[%emt 0:04:00]} Ne5 {[%emt 0:05:26]} 22. Rg3+ {[%emt 0:00:18]} Ng6 {[%emt 0:00:05]} 23. Rd1 {[%emt 0:01:51]} Rfe8 {[%emt 0:01:50]} 24. h4 {[%emt 0:01:20]} Re5 {[%emt 0:11:30]} 25. Qb7 {[%emt 0:00:24]} Rce8 {[%emt 0:05:16]} 26. Qxb4 {[%emt 0:00:48]} Rb5 {[%emt 0:01:39]} 27. Qa3 {[%emt 0:01:12]} Qxa3 {[%emt 0:00:11]} 28. Nxa3 {[%emt 0:00:16]} Rh5 {[%emt 0:01:38]} 29. Nxc4 {[%emt 0:01:08]} Rxe4 {[%emt 0:00:32]} 30. Rd8+ {[%emt 0:00:41]} Kg7 {[%emt 0:00:07]} 31. Nd6 {[%emt 0:00:27]} Rexh4 {[%emt 0:04:23]} 32. Ne8+ {[%emt 0:01:07]} Kf8 {[%emt 0:00:13]} 33. Nxf6+ {[%emt 0:01:25]} Ke7 {[%emt 0:00:10]} 34. Nxh5 {[%emt 0:00:15]} Kxd8 {[%emt 0:00:06]} 35. Nf6 {[%emt 0:00:18]} Ke7 {[%emt 0:02:12]} 36. Nd5+ {[%emt 0:00:19]} Kd6 {[%emt 0:00:22]} 37. Ne3 {[%emt 0:00:45]} Ke5 {[%emt 0:00:56]} 38. Kd2 {[%emt 0:01:27]} f5 {[%emt 0:00:24]} 39. Rf3 {[%emt 0:00:23]} f4 {[%emt 0:00:36]} 40. Nf1 {[%emt 0:00:38]} Rg4 {[%emt 0:00:38]} 41. g3 {[%emt 0:05:38]} h5 {[%emt 0:03:28]} 42. gxf4+ {[%emt 0:07:47]} Nxf4 {[%emt 0:00:31]} 43. Re3+ {[%emt 0:08:11]} Kd4 {[%emt 0:02:47]} 44. Rg3 {[%emt 0:03:42]} Ke4 {[%emt 0:08:51]} 45. Re3+ {[%emt 0:01:15]} Kd5 {[%emt 0:01:14]} 46. Ra3 {[%emt 0:01:19]} Rg6 {[%emt 0:03:41]} 47. Ke3 {[%emt 0:01:07]} Ke5 {[%emt 0:05:24]} 48. c4 {[%emt 0:01:15]} Ng2+ {[%emt 0:00:37]} 49. Kf2 {[%emt 0:01:23]} Kd4 {[%emt 0:00:25]} 50. c5 {[%emt 0:01:39]} Nf4 {[%emt 0:06:03]} 51. Ra4+ {[%emt 0:00:24]} Ke5 {[%emt 0:00:05]} 52. Kf3 {[%emt 0:01:18]} Nd3 {[%emt 0:01:35]} 53. Rh4 {[%emt 0:01:26]} Rf6+ {[%emt 0:00:26]} 54. Ke2 {[%emt 0:00:37]} Nxb2 {[%emt 0:02:38]} 55. Rxh5+ {[%emt 0:00:27]} Kd4 {[%emt 0:00:12]} 56. Rh4+ {[%emt 0:00:32]} Kc3 {[%emt 0:00:30]} 57. Ne3 {[%emt 0:00:24]} Re6 {[%emt 0:00:26]} 58. Rh1 {[%emt 0:00:35]} Nd3 {[%emt 0:00:35]} 59. c6 {[%emt 0:00:31]} Rxc6 {[%emt 0:01:43]} 60. Nd5+ {[%emt 0:00:29]} Kd4 {[%emt 0:00:44]} 61. Rh4+ {[%emt 0:00:32]} Kxd5 {[%emt 0:00:06]} 62. Kxd3 {[%emt 0:00:02]} Rc1 {[%emt 0:01:02]} 63. Ra4 {[%emt 0:00:45]} Rc6 {[%emt 0:00:20]} 64. Ra5+ {[%emt 0:00:28]} Kd6 {[%emt 0:00:05]} 65. Kd4 {[%emt 0:00:11]} Kd7 {[%emt 0:00:23]} 66. Rd5+ {[%emt 0:01:36]} 1/2-1/2

[Event "NOR-chT Eliteserien 2021-22"]
[Site "Norway"]
[Date "2022.03.05"]
[Round "8.6"]
[White "Grebstad, Kjell Borre"]
[Black "Loveid, Erik"]
[Result "1-0"]
[ECO "D46"]
[WhiteElo "2064"]
[BlackElo "1817"]
[Annotator "NA"]
[PlyCount "105"]
[EventDate "2021.10.29"]
[EventType "team-tourn"]
[EventCountry "NOR"]
[SourceTitle "playchess.com"]
[Source "ChessBase"]
[SourceQuality "1"]
[TimeControl "40/5400+30:1800+30"]

1. d4 {[%emt 0:00:10]} d5 {[%emt 0:00:16]} 2. c4 {[%emt 0:00:14]} c6 {[%emt 0:00:08]} 3. e3 {[%emt 0:00:46]} Nf6 {[%emt 0:00:09]} 4. Nf3 {[%emt 0:00:20]} e6 {[%emt 0:00:18]} 5. Nc3 {[%emt 0:00:49]} Nbd7 {[%emt 0:00:19]} 6. Qc2 {[%emt 0:00:51]} Bd6 {[%emt 0:00:36]} 7. Bd3 {[%emt 0:01:06]} O-O {[%emt 0:01:23]} 8. O-O {[%emt 0:02:12]} dxc4 {[%emt 0:01:17]} 9. Bxc4 {[%emt 0:00:08]} b5 {[%emt 0:00:33]} 10. Be2 {[%emt 0:01:03]} Bb7 {[%emt 0:02:40]} 11. e4 {[%emt 0:02:11]} e5 {[%emt 0:14:06]} 12. dxe5 {[%emt 0:01:55]} Nxe5 {[%emt 0:01:32]} 13. Nd4 {[%emt 0:19:12]} Qb6 {[%emt 0:35:25]} 14. Nf5 {[%emt 0:04:28]} Bc5 {[%emt 0:07:24]} 15. h3 {[%emt 0:08:27]} Bc8 {[%emt 0:04:08]} 16. Bg5 {[%emt 0:04:10]} Bxf5 {[%emt 0:01:03]} 17. exf5 {[%emt 0:07:07]} Ned7 {[%emt 0:12:24]} 18. a4 {[%emt 0:05:36]} a6 {[%emt 0:02:51]} 19. g4 {[%emt 0:12:09]} Bd4 {[%emt 0:00:54]} 20. Bf3 {[%emt 0:01:30]} Rac8 {[%emt 0:01:38]} 21. Rad1 {[%emt 0:01:25]} c5 {[%emt 0:02:47]} 22. axb5 {[%emt 0:00:52]} axb5 {[%emt 0:00:39]} 23. Ne2 {[%emt 0:04:06]} Ne5 {[%emt 0:02:05]} 24. Bg2 {[%emt 0:00:10]} Rfe8 {[%emt 0:03:27]} 25. Nxd4 {[%emt 0:11:19]} cxd4 {[%emt 0:00:04]} 26. Qb3 {[%emt 0:00:31]} Nc4 {[%emt 0:02:11]} 27. Rfe1 {[%emt 0:03:14]} Rxe1+ {[%emt 0:00:48]} 28. Rxe1 {[%emt 0:00:05]} Qc5 {[%emt 0:00:30]} 29. Rc1 {[%emt 0:05:01]} Qe5 {[%emt 0:01:50]} 30. Qf3 {[%emt 0:00:53]} Rd8 {[%emt 0:00:26]} 31. Bf4 {[%emt 0:00:57]} Qe7 {[%emt 0:01:07]} 32. b3 {[%emt 0:00:23]} Nd6 {[%emt 0:00:42]} 33. Qd3 {[%emt 0:00:26]} Nde4 {[%emt 0:00:46]} 34. g5 {[%emt 0:01:17]} Nh5 {[%emt 0:00:29]} 35. f6 {[%emt 0:01:39]} gxf6 {[%emt 0:01:05]} 36. Bc7 {[%emt 0:01:13]} Rc8 {[%emt 0:00:00]} 37. Bxe4 {[%emt 0:00:20]} Rxc7 {[%emt 0:00:14]} 38. Rxc7 {[%emt 0:00:25]} Qxc7 {[%emt 0:00:11]} 39. Bxh7+ {[%emt 0:00:44]} Kg7 {[%emt 0:00:21]} 40. gxf6+ {[%emt 0:00:16]} Nxf6 {[%emt 0:00:28]} 41. Bf5 {[%emt 0:30:08]} Qc1+ {[%emt 0:30:26]} 42. Qf1 {[%emt 0:00:25]} Qxf1+ {[%emt 0:00:00]} 43. Kxf1 {[%emt 0:00:00]} Nd5 {[%emt 0:00:00]} 44. Ke2 {[%emt 0:00:00]} Kf6 {[%emt 0:00:00]} 45. Bd7 {[%emt 0:00:00]} Ke5 {[%emt 0:00:00]} 46. h4 {[%emt 0:00:00]} Nf4+ {[%emt 0:00:00]} 47. Kf3 {[%emt 0:00:00]} b4 {[%emt 0:00:00]} 48. Be8 {[%emt 0:00:00]} d3 {[%emt 0:00:00]} 49. Ke3 {[%emt 0:00:00]} Nh3 {[%emt 0:00:18]} 50. Bxf7 {[%emt 0:00:00]} Nf4 {[%emt 0:03:18]} 51. h5 {[%emt 0:00:00]} Kf6 {[%emt 0:01:03]} 52. Bg6 {[%emt 0:00:15]} Nh3 {[%emt 0:00:34]} 53. Bxd3 {[%emt 0:00:54]} 1-0